[Event "Titled Tuesday Blitz July 11 Early 2023"]
[White "Nagare Kaivalya Sandip"]
[Black "Pein, Jonathan"]
[WhiteFideId "25957929"]
[BlackFideId "417092"]
[WhiteElo "2680"]
[BlackElo "2436"]
[Result "1-0"]
[Round "2"]
[TimeControl "180+2"]
[Date "2023.07.11"]
[WhiteClock "0:01:07"]
[BlackClock "0:00:13"]
[Board "77"]

1. e4 {[%clk 0:03:00]}  e5 {[%clk 0:02:51]} 2. Nf3 {[%clk 0:03:01]}  d6 {[%clk 0:02:52]} 3. d4 {[%clk 0:03:00]}  exd4 {[%clk 0:02:52]} 4. Nxd4 {[%clk 0:02:59]}  Nf6 {[%clk 0:02:02]} 5. Nc3 {[%clk 0:02:59]}  g6 {[%clk 0:02:02]} 6. Bc4 {[%clk 0:02:52]}  Bg7 {[%clk 0:02:02]} 7. O-O {[%clk 0:02:52]}  O-O {[%clk 0:02:02]} 8. h3 {[%clk 0:02:52]}  Nc6 {[%clk 0:02:03]} 9. Be3 {[%clk 0:02:52]}  Re8 {[%clk 0:02:03]} 10. Bb3 {[%clk 0:02:43]}  Bd7 {[%clk 0:01:38]} 11. Qf3 {[%clk 0:02:40]}  Ne5 {[%clk 0:01:19]} 12. Qe2 {[%clk 0:02:40]}  c5 {[%clk 0:01:11]} 13. Ndb5 {[%clk 0:02:25]}  Bc6 {[%clk 0:01:04]} 14. Rad1 {[%clk 0:02:21]}  Nxe4 {[%clk 0:01:02]} 15. Nxe4 {[%clk 0:02:20]}  Bxe4 {[%clk 0:01:03]} 16. Nxd6 {[%clk 0:02:17]}  Qh4 {[%clk 0:00:44]} 17. Nxe4 {[%clk 0:02:00]}  Qxe4 {[%clk 0:00:44]} 18. Bd5 {[%clk 0:02:00]}  Qb4 {[%clk 0:00:40]} 19. c3 {[%clk 0:01:58]}  Qa5 {[%clk 0:00:36]} 20. Rfe1 {[%clk 0:01:55]}  Rad8 {[%clk 0:00:36]} 21. Bg5 {[%clk 0:01:37]}  Rc8 {[%clk 0:00:23]} 22. f4 {[%clk 0:01:36]}  h6 {[%clk 0:00:19]} 23. fxe5 {[%clk 0:01:30]}  hxg5 {[%clk 0:00:19]} 24. Qf3 {[%clk 0:01:28]}  Qc7 {[%clk 0:00:17]} 25. e6 {[%clk 0:01:27]}  f5 {[%clk 0:00:16]} 26. Bxb7 {[%clk 0:01:24]}  Rb8 {[%clk 0:00:16]} 27. Rd7 {[%clk 0:01:24]}  Qf4 {[%clk 0:00:14]} 28. Qxf4 {[%clk 0:01:15]}  gxf4 {[%clk 0:00:15]} 29. e7 {[%clk 0:01:16]}  Bf6 {[%clk 0:00:13]} 30. Bd5+ {[%clk 0:01:11]}  Kg7 {[%clk 0:00:13]} 31. Rxa7 {[%clk 0:01:11]}  Rxb2 {[%clk 0:00:13]} 32. Bc6 {[%clk 0:01:11]}  Rbb8 {[%clk 0:00:06]} 33. Bxe8 {[%clk 0:01:10]}  Rxe8 {[%clk 0:00:06]} 34. Ra8 {[%clk 0:01:07]}  Rxe7 {[%clk 0:00:04]} 35. Rxe7+ {[%clk 0:01:07]}  Bxe7 {[%clk 0:00:05]} 36. Ra7 {[%clk 0:01:07]}  Kf7 {[%clk 0:00:06]} 37. h4 {[%clk 0:01:06]}  Ke6 {[%clk 0:00:06]} 38. Rxe7+ {[%clk 0:01:01]}  Kxe7 {[%clk 0:00:07]} 39. Kf2 {[%clk 0:00:58]}  Kd6 {[%clk 0:00:08]} 40. Kf3 {[%clk 0:00:58]}  Kd5 {[%clk 0:00:07]} 41. a4 {[%clk 0:00:57]}  Kc4 {[%clk 0:00:07]} 42. Kxf4 {[%clk 0:00:55]}  Kxc3 {[%clk 0:00:07]} 43. a5 {[%clk 0:00:56]}  c4 {[%clk 0:00:08]} 44. a6 {[%clk 0:00:56]}  Kd3 {[%clk 0:00:09]} 45. a7 {[%clk 0:00:56]}  c3 {[%clk 0:00:10]} 46. a8=Q {[%clk 0:00:56]}  c2 {[%clk 0:00:11]} 47. Qd5+ {[%clk 0:00:56]}  Kc3 {[%clk 0:00:11]} 48. Qc5+ {[%clk 0:00:57]}  Kb2 {[%clk 0:00:12]} 49. Kg5 {[%clk 0:00:57]}  c1=Q+ {[%clk 0:00:11]} 50. Qxc1+ {[%clk 0:00:57]}  Kxc1 {[%clk 0:00:12]} 51. Kxg6 {[%clk 0:00:58]}  Kc2 {[%clk 0:00:08]} 52. Kxf5 {[%clk 0:00:58]}  Kd3 {[%clk 0:00:09]} 53. g4 {[%clk 0:00:59]}  Ke2 {[%clk 0:00:10]} 54. h5 {[%clk 0:01:00]}  Kd2 {[%clk 0:00:10]} 55. h6 {[%clk 0:01:01]}  Ke2 {[%clk 0:00:11]} 56. h7 {[%clk 0:01:02]}  Kf2 {[%clk 0:00:12]} 57. h8=Q {[%clk 0:01:02]}  Kg3 {[%clk 0:00:13]} 58. g5 {[%clk 0:01:03]}  Kf2 {[%clk 0:00:13]} 59. g6 {[%clk 0:01:04]}  Ke3 {[%clk 0:00:14]} 60. g7 {[%clk 0:01:05]}  Ke2 {[%clk 0:00:13]} 61. g8=Q {[%clk 0:01:06]}  Kf3 {[%clk 0:00:14]} 62. Qg4+ {[%clk 0:01:06]}  Ke3 {[%clk 0:00:15]} 63. Qc3+ {[%clk 0:01:06]}  Kf2 {[%clk 0:00:14]} 64. Qcg3+ {[%clk 0:01:06]}  Kf1 {[%clk 0:00:13]} 65. Qd1# {[%clk 0:01:07]} 1-0


[Site "https://www.chess.com"]

[Event "Titled Tuesday Blitz July 11 Early 2023"]
[White "Avazkhonov, Alikhon"]
[Black "Begmuratov, Alisher"]
[WhiteFideId "14208504"]
[BlackFideId "14203367"]
[WhiteElo "2435"]
[BlackElo "2679"]
[Result "0-1"]
[Round "2"]
[TimeControl "180+2"]
[Date "2023.07.11"]
[WhiteClock "0:00:00"]
[BlackClock "0:00:11"]
[Board "78"]

1. d4 {[%clk 0:03:00]}  d5 {[%clk 0:02:58]} 2. c4 {[%clk 0:03:01]}  e6 {[%clk 0:02:58]} 3. Nc3 {[%clk 0:03:01]}  Nf6 {[%clk 0:02:56]} 4. cxd5 {[%clk 0:03:01]}  exd5 {[%clk 0:02:51]} 5. Bg5 {[%clk 0:02:58]}  Be7 {[%clk 0:02:51]} 6. e3 {[%clk 0:02:58]}  c6 {[%clk 0:02:50]} 7. Bd3 {[%clk 0:02:58]}  O-O {[%clk 0:02:48]} 8. Qc2 {[%clk 0:02:57]}  Nbd7 {[%clk 0:02:46]} 9. Nf3 {[%clk 0:02:56]}  h6 {[%clk 0:02:41]} 10. Bh4 {[%clk 0:02:55]}  Re8 {[%clk 0:02:41]} 11. O-O-O {[%clk 0:02:55]}  Ne4 {[%clk 0:02:34]} 12. Bxe4 {[%clk 0:02:54]}  Bxh4 {[%clk 0:02:17]} 13. Bh7+ {[%clk 0:02:54]}  Kh8 {[%clk 0:02:15]} 14. Bd3 {[%clk 0:02:55]}  Nf8 {[%clk 0:02:04]} 15. Rdg1 {[%clk 0:02:50]}  Bf6 {[%clk 0:01:38]} 16. g4 {[%clk 0:02:49]}  c5 {[%clk 0:01:38]} 17. h4 {[%clk 0:02:44]}  cxd4 {[%clk 0:01:38]} 18. exd4 {[%clk 0:02:45]}  Qd6 {[%clk 0:01:24]} 19. Qd2 {[%clk 0:02:01]}  Bd8 {[%clk 0:01:06]} 20. g5 {[%clk 0:01:57]}  h5 {[%clk 0:01:05]} 21. Ne5 {[%clk 0:01:53]}  Rxe5 {[%clk 0:00:59]} 22. dxe5 {[%clk 0:01:54]}  Qxe5 {[%clk 0:00:59]} 23. Qe2 {[%clk 0:01:53]}  Qf4+ {[%clk 0:00:49]} 24. Kb1 {[%clk 0:01:19]}  Bf5 {[%clk 0:00:49]} 25. Nxd5 {[%clk 0:00:57]}  Bxd3+ {[%clk 0:00:36]} 26. Qxd3 {[%clk 0:00:58]}  Qd6 {[%clk 0:00:34]} 27. Qf3 {[%clk 0:00:54]}  Qg6+ {[%clk 0:00:28]} 28. Ka1 {[%clk 0:00:53]}  Ne6 {[%clk 0:00:28]} 29. Nf4 {[%clk 0:00:49]}  Nxf4 {[%clk 0:00:26]} 30. Qxf4 {[%clk 0:00:50]}  Bb6 {[%clk 0:00:27]} 31. Rd1 {[%clk 0:00:41]}  Rc8 {[%clk 0:00:25]} 32. Rd7 {[%clk 0:00:27]}  Rc2 {[%clk 0:00:19]} 33. Qxf7 {[%clk 0:00:18]}  Qxf7 {[%clk 0:00:17]} 34. Rxf7 {[%clk 0:00:19]}  Kg8 {[%clk 0:00:17]} 35. Rxb7 {[%clk 0:00:17]}  Rxf2 {[%clk 0:00:17]} 36. a3 {[%clk 0:00:14]}  Kh7 {[%clk 0:00:17]} 37. Rg1 {[%clk 0:00:12]}  Bd4 {[%clk 0:00:14]} 38. g6+ {[%clk 0:00:11]}  Kh6 {[%clk 0:00:14]} 39. Rg5 {[%clk 0:00:11]}  Bf6 {[%clk 0:00:13]} 40. Ra5 {[%clk 0:00:08]}  Bxh4 {[%clk 0:00:13]} 41. Raxa7 {[%clk 0:00:08]}  Bf6 {[%clk 0:00:12]} 42. Rb5 {[%clk 0:00:07]}  h4 {[%clk 0:00:12]} 43. Raa5 {[%clk 0:00:06]}  Kxg6 {[%clk 0:00:12]} 44. Rh5 {[%clk 0:00:06]}  Rxb2 {[%clk 0:00:12]} 45. Rhg5+ {[%clk 0:00:05]}  Bxg5 {[%clk 0:00:10]} 46. Kxb2 {[%clk 0:00:04]}  h3 {[%clk 0:00:11]} 47. Rd5 {[%clk 0:00:03]}  Kh5 {[%clk 0:00:11]} 48. Rd1 {[%clk 0:00:04]}  Kh4 {[%clk 0:00:11]} 49. a4 {[%clk 0:00:04]}  h2 {[%clk 0:00:12]} 50. a5 {[%clk 0:00:05]}  Be3 {[%clk 0:00:11]} 51. a6 {[%clk 0:00:05]}  Bg1 {[%clk 0:00:11]} 52. Kc2 {[%clk 0:00:00]}  h1=Q {[%clk 0:00:11]} 0-1


[Site "https://www.chess.com"]

[Event "Titled Tuesday Blitz July 11 Early 2023"]
[White "Kvaloy, Aksel Bu"]
[Black "KorolDimitriy75"]
[WhiteFideId "1528815"]
[WhiteElo "2670"]
[BlackElo "2433"]
[Result "1-0"]
[Round "2"]
[TimeControl "180+2"]
[Date "2023.07.11"]
[WhiteClock "0:01:19"]
[BlackClock "0:00:11"]
[Board "80"]

1. d4 {[%clk 0:03:00]}  Nf6 {[%clk 0:02:59]} 2. c4 {[%clk 0:03:00]}  c5 {[%clk 0:02:59]} 3. d5 {[%clk 0:02:57]}  b5 {[%clk 0:03:00]} 4. cxb5 {[%clk 0:02:57]}  a6 {[%clk 0:03:00]} 5. bxa6 {[%clk 0:02:55]}  g6 {[%clk 0:03:00]} 6. Nc3 {[%clk 0:02:54]}  Bxa6 {[%clk 0:03:01]} 7. e4 {[%clk 0:02:54]}  Bxf1 {[%clk 0:03:01]} 8. Kxf1 {[%clk 0:02:55]}  d6 {[%clk 0:03:02]} 9. g3 {[%clk 0:02:55]}  Bg7 {[%clk 0:03:02]} 10. Kg2 {[%clk 0:02:56]}  O-O {[%clk 0:03:03]} 11. Nf3 {[%clk 0:02:56]}  Nbd7 {[%clk 0:03:04]} 12. a4 {[%clk 0:02:47]}  Qb8 {[%clk 0:03:03]} 13. Nb5 {[%clk 0:02:45]}  Nxe4 {[%clk 0:02:52]} 14. Re1 {[%clk 0:02:45]}  Ndf6 {[%clk 0:02:43]} 15. Qd3 {[%clk 0:02:34]}  Qb7 {[%clk 0:01:04]} 16. Rxe4 {[%clk 0:02:31]}  Nxe4 {[%clk 0:01:02]} 17. Qxe4 {[%clk 0:02:32]}  Ra6 {[%clk 0:00:56]} 18. Bg5 {[%clk 0:02:23]}  e6 {[%clk 0:00:54]} 19. Rd1 {[%clk 0:02:17]}  Bxb2 {[%clk 0:00:41]} 20. Qh4 {[%clk 0:02:10]}  exd5 {[%clk 0:00:31]} 21. Be7 {[%clk 0:01:37]}  Rfa8 {[%clk 0:00:27]} 22. Nxd6 {[%clk 0:01:28]}  Qc6 {[%clk 0:00:17]} 23. Ng5 {[%clk 0:01:23]}  h5 {[%clk 0:00:17]} 24. Ngxf7 {[%clk 0:01:21]}  d4+ {[%clk 0:00:14]} 25. f3 {[%clk 0:01:19]}  Rxa4 {[%clk 0:00:13]} 26. Qg5 {[%clk 0:01:19]}  Kh7 {[%clk 0:00:11]} 27. Qh6+ {[%clk 0:01:18]}  Kg8 {[%clk 0:00:11]} 28. Qxg6# {[%clk 0:01:19]} 1-0


[Site "https://www.chess.com"]

[Event "Titled Tuesday Blitz July 11 Early 2023"]
[White "Aslanov, Umid"]
[Black "whiteglovethief"]
[WhiteFideId "13412620"]
[WhiteElo "2657"]
[BlackElo "2419"]
[Result "1-0"]
[Round "2"]
[TimeControl "180+2"]
[Date "2023.07.11"]
[WhiteClock "0:00:51"]
[BlackClock "0:00:00"]
[Board "82"]

1. e4 {[%clk 0:03:00]}  d5 {[%clk 0:02:03]} 2. exd5 {[%clk 0:02:59]}  Qxd5 {[%clk 0:02:03]} 3. Nc3 {[%clk 0:02:59]}  Qa5 {[%clk 0:02:03]} 4. d4 {[%clk 0:03:00]}  Nf6 {[%clk 0:02:02]} 5. Nf3 {[%clk 0:03:00]}  Bg4 {[%clk 0:02:02]} 6. h3 {[%clk 0:03:01]}  Bxf3 {[%clk 0:02:02]} 7. Qxf3 {[%clk 0:03:01]}  c6 {[%clk 0:02:03]} 8. Bd2 {[%clk 0:03:00]}  e6 {[%clk 0:02:03]} 9. Bc4 {[%clk 0:02:52]}  Bb4 {[%clk 0:02:00]} 10. a3 {[%clk 0:02:52]}  Nd5 {[%clk 0:01:57]} 11. Bxd5 {[%clk 0:02:35]}  cxd5 {[%clk 0:01:55]} 12. O-O {[%clk 0:02:35]}  Bxc3 {[%clk 0:01:54]} 13. Bxc3 {[%clk 0:02:36]}  Qc7 {[%clk 0:01:51]} 14. Rfe1 {[%clk 0:02:33]}  O-O {[%clk 0:01:50]} 15. Re3 {[%clk 0:02:29]}  Nd7 {[%clk 0:01:49]} 16. Rae1 {[%clk 0:02:27]}  a5 {[%clk 0:01:48]} 17. Qg4 {[%clk 0:02:24]}  Nf6 {[%clk 0:01:46]} 18. Qe2 {[%clk 0:02:08]}  Ne4 {[%clk 0:01:45]} 19. Rxe4 {[%clk 0:01:51]}  dxe4 {[%clk 0:01:46]} 20. Qxe4 {[%clk 0:01:52]}  Rfd8 {[%clk 0:01:41]} 21. Re3 {[%clk 0:01:45]}  Rd5 {[%clk 0:01:31]} 22. Rg3 {[%clk 0:01:45]}  g6 {[%clk 0:01:29]} 23. Bd2 {[%clk 0:01:41]}  Rc8 {[%clk 0:01:21]} 24. c4 {[%clk 0:01:39]}  Qxc4 {[%clk 0:01:19]} 25. Rc3 {[%clk 0:01:38]}  a4 {[%clk 0:00:50]} 26. Rxc4 {[%clk 0:01:37]}  Rxc4 {[%clk 0:00:51]} 27. Be3 {[%clk 0:01:34]}  b5 {[%clk 0:00:43]} 28. h4 {[%clk 0:01:32]}  h5 {[%clk 0:00:41]} 29. g4 {[%clk 0:01:31]}  b4 {[%clk 0:00:35]} 30. Qd3 {[%clk 0:01:18]}  bxa3 {[%clk 0:00:18]} 31. bxa3 {[%clk 0:00:58]}  Rc8 {[%clk 0:00:15]} 32. Qa6 {[%clk 0:00:57]}  Rcd8 {[%clk 0:00:08]} 33. Qxa4 {[%clk 0:00:57]}  hxg4 {[%clk 0:00:08]} 34. Qb4 {[%clk 0:00:54]}  Rh5 {[%clk 0:00:09]} 35. Qe7 {[%clk 0:00:54]}  Rdd5 {[%clk 0:00:08]} 36. Bg5 {[%clk 0:00:51]}  Rf5 {[%clk 0:00:04]} 37. Bf6 {[%clk 0:00:50]}  Rxf6 {[%clk 0:00:03]} 38. Qxf6 {[%clk 0:00:51]}  Rd5 {[%clk 0:00:02]} 39. a4 {[%clk 0:00:50]}  Kh7 {[%clk 0:00:02]} 40. Kg2 {[%clk 0:00:51]}  Rf5 {[%clk 0:00:00]} 41. Qe7 {[%clk 0:00:51]} 1-0


[Site "https://www.chess.com"]

[Event "Titled Tuesday Blitz July 11 Early 2023"]
[White "a-z30"]
[Black "Bobkov, Vadim"]
[BlackFideId "34110876"]
[WhiteElo "2391"]
[BlackElo "2654"]
[Result "0-1"]
[Round "2"]
[TimeControl "180+2"]
[Date "2023.07.11"]
[WhiteClock "0:00:00"]
[BlackClock "0:00:01"]
[Board "83"]

1. d3 {[%clk 0:03:00]}  Nf6 {[%clk 0:02:35]} 2. Nf3 {[%clk 0:03:01]}  g6 {[%clk 0:02:33]} 3. g3 {[%clk 0:03:02]}  Bg7 {[%clk 0:02:33]} 4. Bg2 {[%clk 0:03:03]}  O-O {[%clk 0:02:33]} 5. O-O {[%clk 0:03:04]}  d6 {[%clk 0:02:33]} 6. c4 {[%clk 0:03:03]}  c6 {[%clk 0:02:33]} 7. Nc3 {[%clk 0:03:04]}  Qa5 {[%clk 0:02:33]} 8. Rb1 {[%clk 0:02:30]}  Qh5 {[%clk 0:02:27]} 9. Bg5 {[%clk 0:02:21]}  Bh3 {[%clk 0:02:20]} 10. Bxf6 {[%clk 0:02:18]}  Bxf6 {[%clk 0:02:07]} 11. Ne4 {[%clk 0:02:18]}  Bg7 {[%clk 0:02:03]} 12. b4 {[%clk 0:02:16]}  Nd7 {[%clk 0:01:57]} 13. b5 {[%clk 0:02:15]}  c5 {[%clk 0:01:54]} 14. Bxh3 {[%clk 0:01:46]}  Qxh3 {[%clk 0:01:53]} 15. e3 {[%clk 0:01:46]}  Ne5 {[%clk 0:01:38]} 16. Nxe5 {[%clk 0:01:43]}  Bxe5 {[%clk 0:01:38]} 17. f4 {[%clk 0:01:32]}  Bg7 {[%clk 0:01:34]} 18. Qf3 {[%clk 0:01:24]}  a6 {[%clk 0:00:55]} 19. bxa6 {[%clk 0:00:58]}  Rxa6 {[%clk 0:00:53]} 20. Rxb7 {[%clk 0:00:28]}  Rxa2 {[%clk 0:00:52]} 21. Nf2 {[%clk 0:00:26]}  Qe6 {[%clk 0:00:42]} 22. Rfb1 {[%clk 0:00:23]}  h5 {[%clk 0:00:31]} 23. Qe4 {[%clk 0:00:16]}  Qf6 {[%clk 0:00:19]} 24. Rxe7 {[%clk 0:00:07]}  Qc3 {[%clk 0:00:18]} 25. Re8 {[%clk 0:00:05]}  Qd2 {[%clk 0:00:13]} 26. Rxf8+ {[%clk 0:00:04]}  Bxf8 {[%clk 0:00:13]} 27. Rf1 {[%clk 0:00:05]}  Qe2 {[%clk 0:00:05]} 28. Kg2 {[%clk 0:00:04]}  h4 {[%clk 0:00:04]} 29. gxh4 {[%clk 0:00:03]}  Qg4+ {[%clk 0:00:03]} 30. Kh1 {[%clk 0:00:02]}  Qxh4 {[%clk 0:00:03]} 31. Qf3 {[%clk 0:00:00]}  Bg7 {[%clk 0:00:01]} 0-1


[Site "https://www.chess.com"]

[Event "Titled Tuesday Blitz July 11 Early 2023"]
[White "Kantans, Toms"]
[Black "Molina Carretero, Daniel"]
[WhiteFideId "11602945"]
[BlackFideId "32071914"]
[WhiteElo "2654"]
[BlackElo "2379"]
[Result "1-0"]
[Round "2"]
[TimeControl "180+2"]
[Date "2023.07.11"]
[WhiteClock "0:00:05"]
[BlackClock "0:00:00"]
[Board "85"]

1. e4 {[%clk 0:03:00]}  c5 {[%clk 0:02:59]} 2. Nf3 {[%clk 0:02:54]}  d6 {[%clk 0:03:00]} 3. Bb5+ {[%clk 0:02:53]}  Bd7 {[%clk 0:03:00]} 4. a4 {[%clk 0:02:44]}  Nf6 {[%clk 0:02:59]} 5. Qe2 {[%clk 0:02:30]}  a6 {[%clk 0:02:46]} 6. Bxd7+ {[%clk 0:02:28]}  Qxd7 {[%clk 0:02:43]} 7. e5 {[%clk 0:02:22]}  dxe5 {[%clk 0:02:42]} 8. Nxe5 {[%clk 0:02:23]}  Qc7 {[%clk 0:02:41]} 9. d3 {[%clk 0:02:19]}  e6 {[%clk 0:02:33]} 10. Nc3 {[%clk 0:02:12]}  Bd6 {[%clk 0:02:26]} 11. Nc4 {[%clk 0:02:11]}  Nbd7 {[%clk 0:02:18]} 12. a5 {[%clk 0:02:05]}  O-O {[%clk 0:02:15]} 13. Nxd6 {[%clk 0:02:02]}  Qxd6 {[%clk 0:02:15]} 14. O-O {[%clk 0:02:00]}  Rac8 {[%clk 0:02:09]} 15. b3 {[%clk 0:01:59]}  Nb8 {[%clk 0:01:56]} 16. Na4 {[%clk 0:01:53]}  Nfd7 {[%clk 0:01:50]} 17. Nb2 {[%clk 0:01:47]}  Qd4 {[%clk 0:01:41]} 18. Ra4 {[%clk 0:01:34]}  Qc3 {[%clk 0:01:38]} 19. Nc4 {[%clk 0:01:29]}  Nc6 {[%clk 0:01:27]} 20. Qd1 {[%clk 0:00:25]}  Nd4 {[%clk 0:01:21]} 21. Ra2 {[%clk 0:00:24]}  Qb4 {[%clk 0:00:43]} 22. Bd2 {[%clk 0:00:24]}  Qb5 {[%clk 0:00:43]} 23. Nd6 {[%clk 0:00:25]}  Qc6 {[%clk 0:00:43]} 24. Nxc8 {[%clk 0:00:25]}  Rxc8 {[%clk 0:00:43]} 25. Re1 {[%clk 0:00:26]}  h6 {[%clk 0:00:41]} 26. h3 {[%clk 0:00:25]}  Nf6 {[%clk 0:00:35]} 27. Ra4 {[%clk 0:00:22]}  Nd5 {[%clk 0:00:33]} 28. Be3 {[%clk 0:00:20]}  Nf5 {[%clk 0:00:31]} 29. Qd2 {[%clk 0:00:19]}  Rd8 {[%clk 0:00:28]} 30. Rg4 {[%clk 0:00:13]}  Kh7 {[%clk 0:00:24]} 31. Qe2 {[%clk 0:00:08]}  Nf6 {[%clk 0:00:23]} 32. Ra4 {[%clk 0:00:08]}  Nd5 {[%clk 0:00:20]} 33. Qf3 {[%clk 0:00:08]}  Nfxe3 {[%clk 0:00:17]} 34. fxe3 {[%clk 0:00:09]}  Qd7 {[%clk 0:00:16]} 35. e4 {[%clk 0:00:08]}  Nc7 {[%clk 0:00:12]} 36. Rc4 {[%clk 0:00:08]}  Qe7 {[%clk 0:00:10]} 37. Qf2 {[%clk 0:00:07]}  Nb5 {[%clk 0:00:03]} 38. Qxc5 {[%clk 0:00:07]}  Qg5 {[%clk 0:00:02]} 39. Qxg5 {[%clk 0:00:06]}  hxg5 {[%clk 0:00:02]} 40. e5 {[%clk 0:00:07]}  Rd5 {[%clk 0:00:02]} 41. Ree4 {[%clk 0:00:06]}  Kg6 {[%clk 0:00:02]} 42. g4 {[%clk 0:00:06]}  Rd7 {[%clk 0:00:02]} 43. Kf2 {[%clk 0:00:05]}  Nc7 {[%clk 0:00:02]} 44. Kf3 {[%clk 0:00:04]}  Nd5 {[%clk 0:00:03]} 45. Rc5 {[%clk 0:00:04]}  Ne7 {[%clk 0:00:02]} 46. d4 {[%clk 0:00:04]}  Nc6 {[%clk 0:00:03]} 47. c3 {[%clk 0:00:04]}  Ne7 {[%clk 0:00:03]} 48. b4 {[%clk 0:00:04]}  Nc6 {[%clk 0:00:03]} 49. Ke3 {[%clk 0:00:03]}  Ne7 {[%clk 0:00:03]} 50. Kd3 {[%clk 0:00:04]}  Nc6 {[%clk 0:00:03]} 51. Kc2 {[%clk 0:00:04]}  Ne7 {[%clk 0:00:03]} 52. Kb3 {[%clk 0:00:04]}  Nd5 {[%clk 0:00:04]} 53. c4 {[%clk 0:00:04]}  Nf4 {[%clk 0:00:04]} 54. h4 {[%clk 0:00:04]}  Nd3 {[%clk 0:00:03]} 55. h5+ {[%clk 0:00:05]}  Kh6 {[%clk 0:00:03]} 56. Rc8 {[%clk 0:00:06]}  Nf2 {[%clk 0:00:00]} 57. Re2 {[%clk 0:00:05]} 1-0


[Site "https://www.chess.com"]

[Event "Titled Tuesday Blitz July 11 Early 2023"]
[White "Goswami, Vedant"]
[Black "Schwabeneder, Florian"]
[WhiteFideId "5003725"]
[BlackFideId "1626191"]
[WhiteElo "2379"]
[BlackElo "2653"]
[Result "0-1"]
[Round "2"]
[TimeControl "180+2"]
[Date "2023.07.11"]
[WhiteClock "0:00:02"]
[BlackClock "0:00:07"]
[Board "86"]

1. d4 {[%clk 0:03:00]}  Nf6 {[%clk 0:02:59]} 2. Nf3 {[%clk 0:03:00]}  g6 {[%clk 0:02:59]} 3. b3 {[%clk 0:02:58]}  Bg7 {[%clk 0:02:57]} 4. Bb2 {[%clk 0:02:59]}  b6 {[%clk 0:02:57]} 5. Nbd2 {[%clk 0:02:59]}  Bb7 {[%clk 0:02:57]} 6. e3 {[%clk 0:03:00]}  O-O {[%clk 0:02:57]} 7. Bc4 {[%clk 0:02:59]}  c5 {[%clk 0:02:54]} 8. dxc5 {[%clk 0:02:58]}  bxc5 {[%clk 0:02:54]} 9. O-O {[%clk 0:02:46]}  d6 {[%clk 0:02:51]} 10. Qe2 {[%clk 0:02:43]}  Nc6 {[%clk 0:02:41]} 11. Rad1 {[%clk 0:02:41]}  Qc7 {[%clk 0:02:37]} 12. e4 {[%clk 0:02:28]}  Nd7 {[%clk 0:02:16]} 13. Bxg7 {[%clk 0:02:27]}  Kxg7 {[%clk 0:02:17]} 14. Qe3 {[%clk 0:02:13]}  a5 {[%clk 0:02:05]} 15. Qc3+ {[%clk 0:02:07]}  Nf6 {[%clk 0:01:58]} 16. Rfe1 {[%clk 0:02:06]}  e5 {[%clk 0:01:53]} 17. Nf1 {[%clk 0:01:51]}  Nd4 {[%clk 0:01:51]} 18. Qd3 {[%clk 0:01:39]}  a4 {[%clk 0:01:47]} 19. c3 {[%clk 0:01:36]}  Nxf3+ {[%clk 0:01:43]} 20. Qxf3 {[%clk 0:01:36]}  axb3 {[%clk 0:01:44]} 21. axb3 {[%clk 0:01:36]}  Rfd8 {[%clk 0:01:33]} 22. Rd2 {[%clk 0:01:34]}  Nxe4 {[%clk 0:01:24]} 23. Rxe4 {[%clk 0:01:31]}  d5 {[%clk 0:01:24]} 24. Rh4 {[%clk 0:01:24]}  dxc4 {[%clk 0:01:16]} 25. Qe3 {[%clk 0:01:14]}  h5 {[%clk 0:01:10]} 26. bxc4 {[%clk 0:01:04]}  Qe7 {[%clk 0:01:04]} 27. Rh3 {[%clk 0:00:56]}  Rxd2 {[%clk 0:01:03]} 28. Nxd2 {[%clk 0:00:54]}  Ra1+ {[%clk 0:00:57]} 29. Nf1 {[%clk 0:00:54]}  Ba6 {[%clk 0:00:54]} 30. Qe4 {[%clk 0:00:28]}  Qe6 {[%clk 0:00:47]} 31. Re3 {[%clk 0:00:26]}  Bxc4 {[%clk 0:00:44]} 32. Re1 {[%clk 0:00:26]}  Rxe1 {[%clk 0:00:33]} 33. Qxe1 {[%clk 0:00:25]}  Bxf1 {[%clk 0:00:31]} 34. Qxf1 {[%clk 0:00:23]}  Qd5 {[%clk 0:00:31]} 35. c4 {[%clk 0:00:20]}  Qd4 {[%clk 0:00:30]} 36. h3 {[%clk 0:00:20]}  e4 {[%clk 0:00:29]} 37. Qe2 {[%clk 0:00:19]}  h4 {[%clk 0:00:25]} 38. Kh2 {[%clk 0:00:19]}  f5 {[%clk 0:00:25]} 39. Kg1 {[%clk 0:00:18]}  Kf6 {[%clk 0:00:25]} 40. Qa2 {[%clk 0:00:18]}  Qd1+ {[%clk 0:00:21]} 41. Kh2 {[%clk 0:00:17]}  Qd6+ {[%clk 0:00:22]} 42. Kg1 {[%clk 0:00:17]}  f4 {[%clk 0:00:15]} 43. Qe2 {[%clk 0:00:15]}  Qe6 {[%clk 0:00:08]} 44. Qb2+ {[%clk 0:00:14]}  Qe5 {[%clk 0:00:08]} 45. Qb6+ {[%clk 0:00:14]}  Kf5 {[%clk 0:00:08]} 46. Qd8 {[%clk 0:00:12]}  e3 {[%clk 0:00:08]} 47. fxe3 {[%clk 0:00:09]}  fxe3 {[%clk 0:00:09]} 48. Qc8+ {[%clk 0:00:07]}  Ke4 {[%clk 0:00:08]} 49. Qg4+ {[%clk 0:00:06]}  Kd3 {[%clk 0:00:08]} 50. Qd1+ {[%clk 0:00:05]}  Kxc4 {[%clk 0:00:08]} 51. Qe2+ {[%clk 0:00:05]}  Kd5 {[%clk 0:00:08]} 52. g4 {[%clk 0:00:05]}  Qg3+ {[%clk 0:00:06]} 53. Kf1 {[%clk 0:00:05]}  Qxh3+ {[%clk 0:00:06]} 54. Ke1 {[%clk 0:00:05]}  Qh1+ {[%clk 0:00:06]} 55. Qf1 {[%clk 0:00:02]}  Qxf1+ {[%clk 0:00:07]} 0-1


[Site "https://www.chess.com"]

[Event "Titled Tuesday Blitz July 11 Early 2023"]
[White "Rodriguez Santiago, Jaime"]
[Black "Lewtak, Damian"]
[WhiteFideId "3100898"]
[BlackFideId "1141724"]
[WhiteElo "2350"]
[BlackElo "2649"]
[Result "1-0"]
[Round "2"]
[TimeControl "180+2"]
[Date "2023.07.11"]
[WhiteClock "0:00:32"]
[BlackClock "0:00:18"]
[Board "89"]

1. c4 {[%clk 0:03:00]}  Nf6 {[%clk 0:02:59]} 2. Nc3 {[%clk 0:03:00]}  e6 {[%clk 0:02:59]} 3. e4 {[%clk 0:03:00]}  d5 {[%clk 0:02:58]} 4. e5 {[%clk 0:03:00]}  d4 {[%clk 0:02:59]} 5. exf6 {[%clk 0:03:00]}  dxc3 {[%clk 0:02:59]} 6. bxc3 {[%clk 0:03:00]}  gxf6 {[%clk 0:02:59]} 7. d4 {[%clk 0:02:59]}  e5 {[%clk 0:03:00]} 8. Nf3 {[%clk 0:02:58]}  Nc6 {[%clk 0:03:00]} 9. d5 {[%clk 0:02:55]}  Ne7 {[%clk 0:03:00]} 10. Ba3 {[%clk 0:02:51]}  c6 {[%clk 0:02:51]} 11. d6 {[%clk 0:02:46]}  Nf5 {[%clk 0:02:51]} 12. c5 {[%clk 0:02:46]}  b6 {[%clk 0:02:51]} 13. Qa4 {[%clk 0:02:37]}  Bd7 {[%clk 0:02:48]} 14. Rd1 {[%clk 0:02:33]}  Bg7 {[%clk 0:02:34]} 15. Ba6 {[%clk 0:02:14]}  O-O {[%clk 0:02:29]} 16. Bb7 {[%clk 0:02:10]}  e4 {[%clk 0:02:21]} 17. Nd4 {[%clk 0:02:06]}  Nxd4 {[%clk 0:02:14]} 18. cxd4 {[%clk 0:02:06]}  e3 {[%clk 0:01:57]} 19. Bxa8 {[%clk 0:01:49]}  exf2+ {[%clk 0:01:49]} 20. Kxf2 {[%clk 0:01:48]}  Qxa8 {[%clk 0:01:49]} 21. Rhe1 {[%clk 0:01:43]}  b5 {[%clk 0:01:48]} 22. Qc2 {[%clk 0:01:40]}  a5 {[%clk 0:01:48]} 23. Bb2 {[%clk 0:01:37]}  Be6 {[%clk 0:01:46]} 24. Re3 {[%clk 0:01:32]}  f5 {[%clk 0:01:42]} 25. Rg3 {[%clk 0:01:31]}  f6 {[%clk 0:01:33]} 26. Re1 {[%clk 0:01:28]}  Qc8 {[%clk 0:01:27]} 27. Qe2 {[%clk 0:01:21]}  Bf7 {[%clk 0:01:18]} 28. Qe7 {[%clk 0:01:14]}  f4 {[%clk 0:01:15]} 29. Rf3 {[%clk 0:00:56]}  Bh6 {[%clk 0:00:46]} 30. d7 {[%clk 0:00:53]}  Qd8 {[%clk 0:00:46]} 31. Qd6 {[%clk 0:00:39]}  Bd5 {[%clk 0:00:45]} 32. Rh3 {[%clk 0:00:37]}  Bg5 {[%clk 0:00:36]} 33. Re7 {[%clk 0:00:37]}  h6 {[%clk 0:00:23]} 34. Bc1 {[%clk 0:00:34]}  f5 {[%clk 0:00:18]} 35. Qg6+ {[%clk 0:00:32]} 1-0


[Site "https://www.chess.com"]